bitfinex-derivatives/quotes_BNBF0:USTF0_20250810
["timestamp","ask_amount","ask_price","bid_price","bid_amount"]
[1754839223377,1.6694401,801.06,800.03,0.5]
[1754839224077,1.6694401,801.04,800.03,0.5]
[1754839224377,1.6694401,801.05,800.03,0.5]
[1754839224881,1.6694401,801.04,800.03,0.5]
[1754839226082,1.6694401,801.05,800.03,0.5]
[1754839226283,1.6694401,801.04,800.03,0.5]
[1754839226480,1.6694401,801.03,800.03,0.5]
[1754839227182,1.6694401,801.02,800.03,0.5]
[1754839227382,1.6694401,801.03,800.03,0.5]
[1754839230181,1.6694401,801.04,800.03,0.5]
[1754839230786,1.6694401,801.02,800.03,0.5]
[1754839231986,1.6694401,801.02,799.93,0.5]
[1754839232186,1.6694401,801.02,799.76,0.21714375]
[1754839232382,1.6694401,801.01,799.85,0.83592693]
[1754839232783,1.6694401,800.95,799.87,0.83592693]
[1754839232983,1.6694401,800.96,799.87,0.83592693]
[1754839233487,1.6694401,800.96,799.86,0.83592693]
[1754839234084,1.6694401,800.97,799.86,0.83592693]
[1754839234286,1.6694401,800.98,799.86,0.83592693]
[1754839234684,1.4694401,800.98,799.86,0.83592693]
[1754839234988,2.8022445,801.62,799.86,0.83592693]
[1754839235184,1.1170384,800.8,799.87,0.83592693]
[1754839235589,1.1170384,800.81,799.87,0.83592693]
[1754839235988,1.1170384,800.8,799.87,0.83592693]
[1754839236289,1.1170384,800.81,799.87,0.83592693]
[1754839237387,1.1170384,800.81,799.93,0.5]
[1754839239792,1.1170384,800.78,799.93,0.5]
[1754839240392,1.1170384,800.77,799.93,0.5]
[1754839240591,1.1170384,800.74,799.93,0.5]
[1754839240793,1.1170384,800.67,799.93,0.5]
[1754839241989,1.1170384,800.67,799.8,0.286]
[1754839242290,1.1170384,800.65,799.79,0.5]
[1754839242488,1.1170384,800.66,799.79,0.5]
[1754839243088,1.1170384,800.69,799.79,0.5]
[1754839243689,1.1170384,800.73,799.79,0.5]
[1754839243894,1.1170384,800.7,799.79,0.333]
[1754839244193,1.1170384,800.67,799.77,0.5]
[1754839244389,0.83730753,800.51,799.77,0.5]
[1754839245195,0.83730753,800.5,799.77,0.5]
[1754839245494,0.83730753,800.49,799.77,0.5]
[1754839245690,0.83730753,800.48,799.77,0.5]
[1754839246095,0.83730753,800.48,799.76,0.21714375]
[1754839246294,0.83730753,800.49,799.76,0.21714375]
[1754839247190,0.83730753,800.48,799.76,0.21714375]
[1754839247389,0.62019223,800.51,799.67,0.5]
[1754839247594,0.62019223,800.51,799.68,0.35]
[1754839247794,1.1170384,800.72,799.68,0.335]
[1754839247994,1.1170384,800.72,799.67,0.5]
[1754839248497,1.1170384,800.74,799.67,0.5]
[1754839248795,1.1170384,800.75,799.67,0.5]
[1754839249194,1.1170384,800.74,799.67,0.5]
[1754839249398,1.1170384,800.76,799.67,0.5]
[1754839250497,1.1170384,800.76,799.83,0.21709431]
[1754839251194,1.1170384,800.75,799.83,0.21709431]
[1754839252192,1.1170384,800.76,799.83,0.21709431]
[1754839252397,1.1170384,800.75,799.83,0.21709431]
[1754839253499,1.1170384,800.73,799.83,0.21709431]
[1754839254301,1.1170384,800.71,799.83,0.21709431]
[1754839255997,1.1170384,800.69,799.83,0.21709431]
[1754839257499,1.1170384,800.65,799.83,0.21709431]
[1754839258400,1.1170384,800.7,799.83,0.21709431]
[1754839258601,1.1170384,800.63,799.83,0.21709431]
[1754839258798,1.1170384,800.62,799.83,0.21709431]
[1754839259100,1.1170384,800.56,799.83,0.21709431]
[1754839259302,1.1170384,800.54,799.83,0.21709431]
[1754839260099,1.1170384,800.53,799.83,0.21709431]
[1754839260902,1.1170384,800.52,799.83,0.21709431]
[1754839261603,5.5492027,802.27,799.83,0.21709431]
[1754839261604,1.1170384,800.53,799.83,0.21709431]
[1754839262202,1.1170384,800.54,799.83,0.21709431]
[1754839262805,1.1170384,800.58,799.83,0.21709431]
[1754839263003,1.1170384,800.55,799.83,0.21709431]
[1754839263203,1.1170384,800.5,799.83,0.21709431]
[1754839263401,1.1170384,800.51,799.83,0.21709431]
[1754839263602,1.1170384,800.52,799.83,0.21709431]
[1754839263802,1.1170384,800.51,799.83,0.21709431]
[1754839264003,1.1170384,800.49,799.83,0.21709431]
[1754839264202,1.1170384,800.47,799.83,0.21709431]
[1754839265201,1.1170384,800.49,799.83,0.21709431]
[1754839265402,1.1170384,800.51,799.83,0.21709431]
[1754839265706,1.1170384,800.43,799.83,0.21709431]
[1754839265901,1.1170384,800.34,799.83,0.21709431]
[1754839266305,3.8844419,801.5,799.83,0.21709431]
[1754839266306,1.1170384,800.36,799.83,0.21709431]
[1754839266804,1.1170384,800.58,799.83,0.21709431]
[1754839267009,1.1170384,800.46,799.83,0.21709431]
[1754839267209,1.1170384,800.49,799.83,0.21709431]
[1754839267410,1.1170384,800.47,799.83,0.21709431]
[1754839268211,1.1170384,800.49,799.83,0.21709431]
[1754839269011,1.1170384,800.46,799.83,0.21709431]
[1754839269311,1.1170384,800.48,799.83,0.21709431]
[1754839269511,1.1170384,800.46,799.83,0.21709431]
[1754839269713,1.1170384,800.45,799.83,0.21709431]
[1754839269909,1.1170384,800.22,799.83,0.21709431]
[1754839270112,1.1170384,800.21,799.83,0.21709431]
[1754839270309,1.1170384,800.23,799.83,0.21709431]
[1754839270914,1.1170384,800.32,799.83,0.21709431]
[1754839271308,1.1170384,800.33,799.83,0.21709431]
[1754839271511,1.1170384,800.21,799.83,0.21709431]
[1754839271709,1.1170384,800.11,799.83,0.21709431]
[1754839271913,1.1170384,800.32,799.83,0.21709431]
[1754839272107,0.73104521,800.31,799.83,0.21709431]
[1754839272309,0.73104521,800.3,799.83,0.21709431]
[1754839272509,0.73104521,800.29,799.83,0.21709431]
[1754839272712,0.73104521,800.28,799.83,0.21709431]
[1754839272909,0.73104521,800.27,799.83,0.21709431]
[1754839273108,0.73104521,800.26,799.83,0.21709431]
[1754839273312,0.73104521,800.25,799.83,0.21709431]
[1754839273513,0.73104521,800.24,799.83,0.21709431]
[1754839273813,1.1170384,800.47,799.83,0.21709431]
[1754839274017,1.1170384,800.41,799.83,0.21709431]
[1754839274217,1.84687888,800.4,799.83,0.21709431]
[1754839274414,1.1170384,800.29,799.83,0.21709431]
[1754839274713,1.1170384,800.2,799.83,0.21709431]
[1754839274917,0.72984048,800.19,799.83,0.21709431]
[1754839275115,1.1170384,800.12,799.83,0.21709431]
[1754839275318,0.72984048,800.11,799.83,0.21709431]
[1754839275614,1.1170384,800.04,799.83,0.21709431]
[1754839275818,0.72984048,800.03,799.83,0.21709431]
[1754839276017,0.72984048,800.02,799.83,0.21709431]
[1754839276314,0.72984048,800.01,799.83,0.21709431]
[1754839276517,1.1170384,800.07,799.83,0.21709431]
[1754839276518,0.72984048,800.0,799.83,0.21709431]
[1754839276718,0.72984048,799.99,799.83,0.21709431]
[1754839276918,0.72984048,799.98,799.83,0.21709431]
[1754839277120,0.72984048,799.97,799.83,0.21709431]
[1754839277314,1.1170384,800.14,799.83,0.21709431]
[1754839277518,1.1170384,800.12,799.83,0.21709431]
[1754839277714,0.72743486,800.11,799.83,0.21709431]
[1754839277918,0.72743486,800.1,799.83,0.21709431]
[1754839278117,0.72743486,800.09,799.83,0.21709431]
[1754839278319,0.72743486,800.08,799.83,0.21709431]
[1754839278515,0.72743486,800.07,799.83,0.21709431]
[1754839278820,0.72743486,800.06,799.83,0.21709431]
[1754839279017,0.72743486,800.05,799.83,0.21709431]
[1754839279215,1.1170384,800.11,799.83,0.21709431]
[1754839279216,0.72743486,800.04,799.83,0.21709431]
[1754839279415,0.72743486,800.03,799.83,0.21709431]
[1754839279619,0.72743486,800.02,799.83,0.21709431]
[1754839279917,0.72743486,800.01,799.83,0.21709431]
[1754839280116,1.1170384,800.11,799.83,0.21709431]
[1754839280117,0.72743486,800.0,799.83,0.21709431]
[1754839280316,1.1170384,800.14,799.83,0.21709431]
[1754839280516,0.72620706,800.13,799.83,0.21709431]
[1754839280717,0.72620706,800.12,799.83,0.21709431]
[1754839280918,0.72620706,800.11,799.83,0.21709431]
[1754839281221,0.72620706,800.1,799.83,0.21709431]
[1754839281421,0.72620706,800.09,799.83,0.21709431]
[1754839281621,0.72620706,800.08,799.83,0.21709431]
[1754839281816,0.72620706,800.07,799.83,0.21709431]
[1754839282117,0.72620706,800.06,799.83,0.21709431]
[1754839282317,0.72620706,800.05,799.83,0.21709431]
[1754839282519,0.72620706,800.04,799.83,0.21709431]
[1754839282718,0.72620706,800.03,799.83,0.21709431]
[1754839282925,0.72547598,800.02,799.83,0.21709431]
[1754839283122,1.1170384,800.14,799.83,0.21709431]
[1754839283423,0.72519379,800.13,799.83,0.21709431]
[1754839283619,0.72519379,800.12,799.83,0.21709431]
[1754839283823,0.72519379,800.11,799.83,0.21709431]
[1754839284123,0.72519379,800.1,799.83,0.21709431]
[1754839284323,0.72519379,800.09,799.83,0.21709431]
[1754839284622,1.1170384,800.18,799.83,0.21709431]
[1754839284623,0.72519379,800.08,799.83,0.21709431]
[1754839284819,3.8844419,801.27,799.83,0.21709431]
[1754839284820,0.72519379,800.07,799.83,0.21709431]
[1754839285023,0.72519379,800.06,799.83,0.21709431]
[1754839285323,1.1170384,800.14,799.83,0.21709431]
[1754839285622,1.8417954,800.13,799.83,0.21709431]
[1754839285820,0.724757,800.12,799.83,0.21709431]
[1754839286016,3.8844419,801.23,799.83,0.21709431]
[1754839286017,1.1170384,800.26,799.83,0.21709431]
[1754839286221,1.1170384,800.2,799.83,0.21709431]
[1754839286521,1.1170384,800.25,799.83,0.21709431]
[1754839286724,0.72470183,800.24,799.83,0.21709431]
[1754839286926,1.1170384,800.26,799.83,0.21709431]
[1754839287126,0.72469257,800.25,799.83,0.21709431]
[1754839287422,1.1170384,800.27,799.83,0.21709431]
[1754839287626,1.1170384,800.37,799.83,0.21709431]
[1754839287828,0.7246192,800.36,799.83,0.21709431]
[1754839288124,0.7246192,800.35,799.83,0.21709431]
[1754839288421,0.7246192,800.34,799.83,0.21709431]
[1754839288626,1.1170384,800.43,799.83,0.21709431]
[1754839288822,0.72458272,800.42,799.83,0.21709431]
[1754839289023,0.72458272,800.41,799.83,0.21709431]
[1754839289222,1.1170384,800.67,799.83,0.21709431]
[1754839289425,0.7245627,800.66,799.83,0.21709431]
[1754839289628,0.7245627,800.65,799.83,0.21709431]
[1754839289821,0.7245627,800.64,799.83,0.21709431]
[1754839290022,0.7245627,800.63,799.83,0.21709431]
[1754839290233,0.7245627,800.62,799.83,0.21709431]
[1754839290427,0.7245627,800.61,799.83,0.21709431]
[1754839290626,1.1170384,800.67,799.83,0.21709431]
[1754839290627,0.7245627,800.6,799.83,0.21709431]
[1754839290825,0.7245627,800.59,799.83,0.21709431]
[1754839291028,0.7245627,800.58,799.83,0.21709431]
[1754839291228,0.7245627,800.57,799.83,0.21709431]
[1754839291428,0.7245627,800.56,799.83,0.21709431]
[1754839291626,0.7245627,800.55,799.83,0.21709431]
[1754839291831,0.7245627,800.54,799.83,0.21709431]
[1754839292027,0.7245627,800.53,799.83,0.21709431]
[1754839292227,1.1170384,800.69,799.83,0.21709431]
[1754839292426,0.72487937,800.68,799.83,0.21709431]
[1754839292628,0.72487937,800.67,799.83,0.21709431]
[1754839292834,0.72487937,800.66,799.83,0.21709431]
[1754839293028,0.72487937,800.65,799.83,0.21709431]
[1754839293330,1.6747403,800.87,799.83,0.21709431]
[1754839293331,0.72487937,800.64,799.83,0.21709431]
[1754839293529,0.72487937,800.63,799.83,0.21709431]
[1754839293728,0.72487937,800.62,799.83,0.21709431]
[1754839293935,0.72487937,800.61,799.83,0.21709431]
[1754839294133,0.72487937,800.6,799.83,0.21709431]
[1754839294334,0.72487937,800.59,799.83,0.21709431]
[1754839294634,0.72520608,800.58,799.83,0.21709431]
[1754839294829,0.72520608,800.57,799.83,0.21709431]
[1754839295128,0.72520608,800.56,799.83,0.21709431]
[1754839295333,0.72520608,800.55,799.83,0.21709431]
[1754839295533,0.72520608,800.54,799.83,0.21709431]
[1754839295729,0.72520608,800.53,799.83,0.21709431]
[1754839295928,1.1170384,800.62,799.83,0.21709431]
[1754839296130,0.72539627,800.61,799.83,0.21709431]
[1754839296329,1.84243467,800.6,799.83,0.21709431]
[1754839296534,0.72539627,800.59,799.83,0.21709431]
[1754839296834,0.72539627,800.58,799.83,0.21709431]
[1754839297030,0.72539627,800.57,799.83,0.21709431]
[1754839297230,0.72539627,800.56,799.83,0.21709431]
[1754839297431,0.72539627,800.55,799.83,0.21709431]
[1754839297634,0.72539627,800.54,799.83,0.21709431]
[1754839297831,0.72539627,800.53,799.83,0.21709431]
[1754839298134,0.72539627,800.52,799.83,0.21709431]
[1754839298334,0.72539627,800.51,799.83,0.21709431]
[1754839298534,0.72539627,800.5,799.83,0.21709431]
[1754839298730,0.72539627,800.49,799.83,0.21709431]
[1754839298930,1.1170384,800.78,799.83,0.21709431]
[1754839299234,0.7259497,800.77,799.83,0.21709431]
[1754839299434,0.7259497,800.76,799.83,0.21709431]
[1754839299634,0.7259497,800.75,799.83,0.21709431]
[1754839299834,0.7259497,800.74,799.83,0.21709431]
[1754839300035,0.7259497,800.73,799.83,0.21709431]
[1754839300334,0.72640035,800.72,799.83,0.21709431]
[1754839300535,0.72640035,800.71,799.83,0.21709431]
[1754839300730,0.72640035,800.7,799.83,0.21709431]
[1754839300935,0.72640035,800.69,799.83,0.21709431]
[1754839301132,0.72640035,800.68,799.83,0.21709431]
[1754839301435,0.72640035,800.67,799.83,0.21709431]
[1754839301732,0.72640035,800.66,799.83,0.21709431]
[1754839301935,0.72640035,800.65,799.83,0.21709431]
[1754839302133,0.72640035,800.64,799.83,0.21709431]
[1754839302334,1.1170384,800.77,799.83,0.21709431]
[1754839302335,0.72640035,800.63,799.83,0.21709431]
[1754839302531,0.72640035,800.62,799.83,0.21709431]
[1754839302732,0.72640035,800.61,799.83,0.21709431]
[1754839302935,0.72640035,800.6,799.83,0.21709431]
[1754839303132,0.72640035,800.59,799.83,0.21709431]
[1754839303331,0.72640035,800.58,799.83,0.21709431]
[1754839303536,0.72640035,800.57,799.83,0.21709431]
[1754839303736,1.1170384,800.8,799.83,0.21709431]
[1754839304031,0.72691487,800.79,799.83,0.21709431]
[1754839304235,0.72691487,800.78,799.83,0.21709431]
[1754839304435,0.72691487,800.77,799.83,0.21709431]
[1754839304631,0.72691487,800.76,799.83,0.21709431]
[1754839304836,0.72691487,800.75,799.83,0.21709431]
[1754839305131,0.72691487,800.74,799.83,0.21709431]
[1754839305337,0.72691487,800.73,799.83,0.21709431]
[1754839305637,0.72691487,800.72,799.83,0.21709431]
[1754839305933,0.72691487,800.71,799.83,0.21709431]
[1754839306137,0.72691487,800.7,799.83,0.21709431]
[1754839306437,0.72691487,800.69,799.83,0.21709431]
[1754839306736,1.1170384,800.75,799.83,0.21709431]
[1754839306737,0.72691487,800.68,799.83,0.21709431]
[1754839306936,0.72691487,800.67,799.83,0.21709431]
[1754839307136,0.72691487,800.66,799.83,0.21709431]
[1754839307334,1.1170384,800.77,799.83,0.21709431]
[1754839307532,0.83055227,800.61,799.83,0.21709431]
[1754839308333,0.63055227,800.6,799.83,0.21709431]
[1754839308735,1.1170384,800.78,799.83,0.21709431]
[1754839308937,0.72827029,800.77,799.83,0.21709431]
[1754839309137,0.72827029,800.76,799.83,0.21709431]
[1754839309438,0.72827029,800.75,799.83,0.21709431]
[1754839309638,0.72827029,800.74,799.83,0.21709431]
[1754839309838,0.72827029,800.73,799.83,0.21709431]
[1754839310036,0.72827029,800.72,799.83,0.21709431]
[1754839310235,0.72827029,800.71,799.83,0.21709431]
[1754839310436,1.1170384,800.75,799.83,0.21709431]
[1754839310634,0.72856131,800.74,799.83,0.21709431]
[1754839310838,0.72856131,800.73,799.83,0.21709431]
[1754839311039,0.72856131,800.72,799.83,0.21709431]
[1754839311236,1.1170384,800.78,799.83,0.21709431]
[1754839311640,1.1170384,800.79,799.83,0.21709431]
[1754839311840,0.72864018,800.78,799.83,0.21709431]
[1754839312138,1.1170384,800.79,799.83,0.21709431]
[1754839312340,2.8022445,801.54,799.83,0.21709431]
[1754839312341,1.1170384,800.78,799.83,0.21709431]
[1754839313338,1.1170384,800.77,799.83,0.21709431]
[1754839314040,1.1170384,800.78,799.83,0.21709431]
[1754839315043,1.1170384,800.77,799.83,0.21709431]
[1754839315244,1.1170384,800.78,799.83,0.21709431]
[1754839315445,1.1170384,800.77,799.83,0.21709431]
[1754839315843,1.1170384,800.81,799.83,0.21709431]
[1754839316344,1.1170384,800.8,799.83,0.21709431]
[1754839316950,1.1170384,800.81,799.83,0.21709431]
[1754839318245,1.1170384,800.8,799.83,0.21709431]
[1754839318445,1.1170384,800.78,799.83,0.21709431]
[1754839319244,1.1170384,800.79,799.83,0.21709431]
[1754839320850,1.1170384,800.78,799.83,0.21709431]
[1754839321548,1.1170384,800.79,799.83,0.21709431]
[1754839321747,1.1170384,800.76,799.83,0.21709431]
[1754839321946,1.1170384,800.69,799.83,0.21709431]
[1754839322346,1.1170384,800.72,799.83,0.21709431]
[1754839323250,1.1170384,800.64,799.83,0.21709431]
[1754839323453,1.1170384,800.66,799.83,0.21709431]
[1754839323648,1.1170384,800.68,799.83,0.21709431]
[1754839323852,2.8022445,801.4,799.83,0.21709431]
[1754839323853,1.1170384,800.75,799.83,0.21709431]
[1754839324353,1.1170384,800.8,799.83,0.21709431]
[1754839325552,1.1170384,800.81,799.83,0.21709431]
[1754839326152,1.1170384,800.82,799.83,0.21709431]
[1754839326350,1.1170384,800.84,799.83,0.21709431]
[1754839326654,1.1170384,800.86,799.83,0.21709431]
[1754839326854,0.72891309,800.85,799.83,0.21709431]
[1754839327156,1.84595149,800.84,799.83,0.21709431]
[1754839327355,1.1170384,800.85,799.83,0.21709431]
[1754839327551,0.72878441,800.84,799.83,0.21709431]
[1754839327755,1.1170384,800.85,799.83,0.21709431]
[1754839327951,0.7287843,800.84,799.83,0.21709431]
[1754839328253,1.1170384,800.85,799.83,0.21709431]
[1754839328450,1.84570248,800.84,799.83,0.21709431]
[1754839328650,1.6747403,800.99,799.83,0.21709431]
[1754839328651,1.84570248,800.83,799.83,0.21709431]
[1754839328856,0.72866408,800.82,799.83,0.21709431]
[1754839329156,1.1170384,800.84,799.83,0.21709431]
[1754839329357,0.72858047,800.83,799.83,0.21709431]
[1754839329557,0.72858047,800.82,799.83,0.21709431]
[1754839329755,1.1170384,800.84,799.83,0.21709431]
[1754839329955,0.72858047,800.83,799.83,0.21709431]
[1754839330154,1.1170384,800.84,799.83,0.21709431]
[1754839330355,0.72849565,800.83,799.83,0.21709431]
[1754839330558,1.1170384,800.78,799.83,0.21709431]
[1754839331160,1.1170384,800.83,799.83,0.21709431]
[1754839331459,3.8844419,801.72,799.83,0.21709431]
[1754839331460,1.1170384,800.8,799.83,0.21709431]
[1754839331659,0.72843144,800.79,799.83,0.21709431]
[1754839331860,1.1170384,800.8,799.83,0.21709431]
[1754839332061,0.72845689,800.79,799.83,0.21709431]
[1754839332261,1.1170384,800.7,799.83,0.21709431]
[1754839332457,1.1170384,800.69,799.83,0.21709431]
[1754839332657,1.1170384,800.64,799.83,0.21709431]
[1754839333856,1.1170384,800.67,799.83,0.21709431]
[1754839334061,1.1170384,800.66,799.83,0.21709431]
[1754839335062,2.8022445,801.38,799.83,0.21709431]
[1754839335063,1.1170384,800.62,799.83,0.21709431]
[1754839335361,1.1170384,800.61,799.83,0.21709431]
[1754839336062,0.9170384,800.61,799.83,0.21709431]
[1754839336258,1.6747403,800.73,799.83,0.21709431]
[1754839336463,2.40391095,800.72,799.83,0.21709431]
[1754839336663,0.72917065,800.71,799.83,0.21709431]
[1754839336963,0.72917065,800.7,799.83,0.21709431]
[1754839337158,1.6747403,800.74,799.83,0.21709431]
[1754839337159,0.72917065,800.69,799.83,0.21709431]
[1754839337360,1.6747403,800.73,799.83,0.21709431]
[1754839337660,1.6747403,800.81,799.83,0.21709431]
[1754839337865,0.72935639,800.8,799.83,0.21709431]
[1754839338065,0.72935639,800.79,799.83,0.21709431]
[1754839338261,0.72935639,800.78,799.83,0.21709431]
[1754839338466,1.6747403,800.84,799.83,0.21709431]
[1754839338661,0.72955752,800.83,799.83,0.21709431]
[1754839338966,0.72955752,800.82,799.83,0.21709431]
[1754839339163,1.6747403,800.87,799.83,0.21709431]
[1754839339364,1.6747403,800.85,799.83,0.21709431]
[1754839339565,0.72983672,800.84,799.83,0.21709431]
[1754839339762,1.6747403,800.93,799.83,0.21709431]
[1754839339962,0.72983672,800.92,799.83,0.21709431]
[1754839340167,2.40457702,800.91,799.83,0.21709431]
[1754839340462,0.72983672,800.9,799.83,0.21709431]
[1754839340667,0.72983672,800.89,799.83,0.21709431]
[1754839340867,2.40457702,800.88,799.83,0.21709431]
[1754839341064,0.72983672,800.87,799.83,0.21709431]
[1754839341264,2.40457702,800.86,799.83,0.21709431]
[1754839341464,0.72983672,800.85,799.83,0.21709431]
[1754839341661,0.72983672,800.84,799.83,0.21709431]
[1754839341860,0.72983672,800.83,799.83,0.21709431]
[1754839342063,0.72983672,800.82,799.83,0.21709431]
[1754839342262,3.8844419,801.8,799.83,0.21709431]
[1754839342263,1.6747403,800.85,799.83,0.21709431]
[1754839342466,0.73092601,800.84,799.83,0.21709431]
[1754839342764,0.73092601,800.83,799.83,0.21709431]
[1754839342967,1.6747403,800.9,799.83,0.21709431]
[1754839343164,1.6747403,800.88,799.83,0.21709431]
[1754839343366,0.73092601,800.87,799.83,0.21709431]
[1754839343565,0.73092601,800.86,799.83,0.21709431]
[1754839343768,0.73092601,800.85,799.83,0.21709431]
[1754839343969,1.6747403,800.9,799.83,0.21709431]
[1754839344162,0.73135964,800.89,799.83,0.21709431]
[1754839344364,1.6747403,800.87,799.83,0.21709431]
[1754839344566,1.6747403,800.88,799.83,0.21709431]
[1754839345465,1.6747403,800.84,799.83,0.21709431]
[1754839346169,1.6747403,800.82,799.83,0.21709431]
[1754839346766,1.6747403,800.83,799.83,0.21709431]
[1754839347171,1.6747403,800.81,799.83,0.21709431]
[1754839347370,1.6747403,800.8,799.83,0.21709431]
[1754839347568,1.6747403,800.84,799.83,0.21709431]
[1754839347768,1.6747403,800.85,799.83,0.21709431]
[1754839348272,1.6747403,800.83,799.83,0.21709431]
[1754839348967,1.6747403,800.85,799.83,0.21709431]
[1754839349169,1.6747403,800.86,799.83,0.21709431]
[1754839349368,1.6747403,800.84,799.83,0.21709431]
[1754839350169,2.8022445,801.58,799.83,0.21709431]
[1754839350170,1.6747403,800.83,799.83,0.21709431]
[1754839350368,1.6747403,800.82,799.83,0.21709431]
[1754839351370,1.6747403,800.8,799.83,0.21709431]
[1754839351770,1.6747403,800.79,799.83,0.21709431]
[1754839352570,1.6747403,800.78,799.83,0.21709431]
[1754839352870,1.6747403,800.75,799.83,0.21709431]
[1754839353074,1.6747403,800.76,799.83,0.21709431]
[1754839353275,1.6747403,800.75,799.83,0.21709431]
[1754839353772,1.6747403,800.74,799.83,0.21709431]
[1754839354375,1.6747403,800.73,799.83,0.21709431]
[1754839355271,1.6747403,800.72,799.83,0.21709431]
[1754839356276,1.6747403,800.71,799.83,0.21709431]
[1754839356674,1.6747403,800.74,799.83,0.21709431]
[1754839357276,1.6747403,800.73,799.83,0.21709431]
[1754839357576,1.6747403,800.68,799.83,0.21709431]
[1754839358277,1.6747403,800.67,799.83,0.21709431]
[1754839358578,1.6747403,800.66,799.83,0.21709431]
[1754839358774,1.6747403,800.61,799.83,0.21709431]
[1754839359074,1.6747403,800.59,799.83,0.21709431]
[1754839359273,1.6747403,800.6,799.83,0.21709431]
[1754839359878,1.4747403,800.6,799.83,0.21709431]
[1754839360278,2.8022445,801.23,799.83,0.21709431]
[1754839360479,0.73545527,801.22,799.83,0.21709431]
[1754839360684,0.73545527,801.21,799.83,0.21709431]
[1754839360885,0.73545527,801.2,799.83,0.21709431]
[1754839361084,0.73545527,801.19,799.83,0.21709431]
[1754839361284,0.73545527,801.18,799.83,0.21709431]
[1754839361481,0.73545527,801.17,799.83,0.21709431]
[1754839361681,0.73545527,801.16,799.83,0.21709431]
[1754839361883,0.73545527,801.15,799.83,0.21709431]
[1754839362083,0.73545527,801.14,799.83,0.21709431]
[1754839362380,0.73545527,801.13,799.83,0.21709431]
[1754839362581,0.73545527,801.12,799.83,0.21709431]
[1754839362783,0.73545527,801.11,799.83,0.21709431]
[1754839362981,0.73545527,801.1,799.83,0.21709431]
[1754839363180,0.73545527,801.09,799.83,0.21709431]
[1754839363384,0.73545527,801.08,799.83,0.21709431]
[1754839363578,0.73545527,801.07,799.83,0.21709431]
[1754839363782,0.73545527,801.06,799.83,0.21709431]
[1754839363985,0.73545527,801.05,799.83,0.21709431]
[1754839364281,0.73545527,801.04,799.83,0.21709431]
[1754839364481,0.73545527,801.03,799.83,0.21709431]
[1754839364682,0.73545527,801.02,799.83,0.21709431]
[1754839364879,0.73545527,801.01,799.83,0.21709431]
[1754839365080,0.73545527,801.0,799.83,0.21709431]
[1754839365280,0.73545527,800.99,799.83,0.21709431]
[1754839365583,0.73545527,800.98,799.83,0.21709431]
[1754839365780,0.73545527,800.97,799.83,0.21709431]
[1754839365982,0.73545527,800.96,799.83,0.21709431]
[1754839366182,1.1194811,800.36,799.83,0.21709431]
[1754839366379,1.1194811,800.37,799.83,0.21709431]
[1754839366585,1.1194811,800.34,799.83,0.21709431]
[1754839366784,1.1194811,800.35,799.83,0.21709431]
[1754839367384,1.1194811,800.34,799.83,0.21709431]
[1754839367878,1.1194811,800.32,799.83,0.21709431]
[1754839368083,1.1194811,800.3,799.83,0.21709431]
[1754839368286,1.1194811,800.27,799.83,0.21709431]
[1754839368485,0.83998821,800.12,799.83,0.21709431]
[1754839368684,0.83998821,800.07,799.83,0.21709431]
[1754839368887,0.83998821,800.0,799.83,0.21709431]
[1754839369082,0.62278212,800.0,799.48,0.83016769]
[1754839369283,0.42278212,800.0,799.48,0.83016769]
[1754839369481,1.1194811,800.07,799.45,0.5]
[1754839370286,1.1194811,800.08,799.45,0.5]
[1754839371291,1.1194811,800.09,799.45,0.5]
[1754839371490,1.1194811,800.1,799.63,0.286]
[1754839371690,1.1194811,800.19,799.63,0.286]
[1754839371890,1.1194811,800.21,799.56,0.35]
[1754839372087,1.1194811,800.37,799.56,0.286]
[1754839372290,0.90230483,800.38,799.56,0.5]
[1754839372488,2.8022445,801.32,799.56,0.5]
[1754839372691,3.53856012,801.31,799.56,0.5]
[1754839372892,0.73631562,801.3,799.56,0.5]
[1754839373091,0.73631562,801.29,799.56,0.5]
[1754839373391,2.8022445,801.31,799.56,0.5]
[1754839373392,0.73631562,801.28,799.56,0.5]
[1754839373692,0.73631562,801.27,799.69,0.286]
[1754839373990,2.8022445,801.45,799.69,0.286]
[1754839373991,0.73631562,801.26,799.69,0.286]
[1754839374188,0.73631562,801.25,799.77,0.5]
[1754839374387,0.73631562,801.24,799.77,0.5]
[1754839374687,0.73612323,801.23,799.77,0.5]
[1754839374892,0.73612323,801.22,799.77,0.5]
[1754839375093,0.73612323,801.21,799.77,0.5]
[1754839375288,3.8844419,801.93,799.77,0.5]
[1754839375289,0.73612323,801.2,799.95,0.21706384]
[1754839375594,0.73612323,801.19,799.95,0.21706384]
[1754839375794,0.73612323,801.18,799.95,0.21706384]
[1754839375995,0.73612323,801.17,799.95,0.21706384]
[1754839376191,0.73612323,801.16,799.95,0.21706384]
[1754839376390,0.73612323,801.15,799.95,0.21706384]
[1754839376595,0.73612323,801.14,799.95,0.21706384]
[1754839376793,0.73612323,801.13,799.95,0.21706384]
[1754839377092,2.8022445,801.33,799.95,0.21706384]